fUST/lending_fUST_20260118
["ID","MTS","AMOUNT","RATE_DAILY","PERIOD"]
[402439305,1768677104847,-176.51611315,0.00016986,3]
[402439306,1768677104857,-500.0,0.00016986,3]
[402439308,1768677104867,-500.0,0.0001726,3]
[402439317,1768677104878,-500.0,0.00017534,3]
[402439320,1768677105090,-795.91,0.00017808,3]
[402439321,1768677105100,-500.0,0.00017808,3]
[402439322,1768677105109,-795.91,0.00018082,3]
[402439324,1768677105119,-534.26411861,0.00018082,3]
[402439325,1768677105128,-795.91,0.00018356,3]
[402439327,1768677105138,-3497.63179258,0.0001862,2]
[402439328,1768677105149,-16213.92276521,0.0001862,2]
[402439330,1768677105160,-7076.86593956,0.0001862,2]
[402439332,1768677105189,-256.2,0.0001862,2]
[402439333,1768677105200,-12850.14562991,0.0001862,2]
[402439335,1768677105211,-3377.2436135,0.0001862,2]
[402439336,1768677105222,-672.80841133,0.0001862,2]
[402439358,1768677105690,-500.0,0.00016438,3]
[402439360,1768677105700,-500.0,0.00016438,3]
[402439361,1768677105710,-500.0,0.00016438,3]
[402439363,1768677105719,-500.0,0.00016712,3]
[402439364,1768677105728,-500.0,0.00016712,3]
[402439366,1768677105737,-859.46617756,0.00016827,2]
[402439367,1768677105749,-182.20048911,0.00016827,2]
[402439369,1768677105759,-71.54204279,0.00016986,3]
[402439569,1768677425566,-5000.0,0.00012227,2]
[402439570,1768677425772,-190.21916433,0.00012413,2]
[402439571,1768677425803,-710.40663294,0.00012449,2]
[402439572,1768677425830,-300.0,0.0001307,2]
[402439573,1768677425859,-500.0,0.00013071,2]
[402439574,1768677425886,-500.0,0.00013071,2]
[402439575,1768677425912,-500.0,0.00013071,2]
[402439576,1768677425939,-500.0,0.00013071,2]
[402439577,1768677425968,-500.0,0.00013071,2]
[402439578,1768677425996,-500.0,0.00013071,2]
[402439579,1768677426025,-500.0,0.00013071,2]
[402439580,1768677426053,-98.75840546,0.00013071,2]
[402439581,1768677426356,-401.24159454,0.00013071,2]
[402439582,1768677426389,-500.0,0.00013071,2]
[402439583,1768677426417,-500.0,0.00013071,2]
[402439584,1768677426447,-500.0,0.00013071,2]
[402439585,1768677426474,-500.0,0.00013071,2]
[402439586,1768677426501,-303.08858121,0.00013071,2]
[402439587,1768677426528,-500.0,0.00013071,2]
[402439588,1768677426557,-500.0,0.00013071,2]
[402439589,1768677426583,-344.41046759,0.00013071,2]
[402439590,1768677426610,-308.28240449,0.00013071,2]
[402439591,1768677426638,-500.0,0.00013071,2]
[402439592,1768677426782,-500.0,0.00013071,2]
[402439593,1768677426810,-500.0,0.00013071,2]
[402439594,1768677426839,-500.0,0.00013071,2]
[402439595,1768677426867,-500.0,0.00013071,2]
[402439596,1768677426894,-500.0,0.00013071,2]
[402439597,1768677426920,-500.0,0.00013071,2]
[402439598,1768677426947,-500.0,0.00013071,2]
[402439599,1768677426973,-500.0,0.00013071,2]
[402439600,1768677427001,-500.0,0.00013071,2]
[402439601,1768677427031,-444.0249432,0.00013071,2]
[402439602,1768677427123,-500.0,0.00013071,2]
[402439603,1768677427154,-500.0,0.00013071,2]
[402439604,1768677427183,-555.14101351,0.00013071,2]
[402439605,1768677427213,-499.99999999,0.00013071,2]
[402439606,1768677428477,-2838.81525686,0.00013072,2]
[402439607,1768677428511,-10000.01,0.00013072,2]
[402439608,1768677428535,-10000.01,0.00013072,2]
[402439609,1768677428579,-3002.90739122,0.00013072,2]
[402439610,1768677428603,-3994.19521756,0.00013072,2]
[402439611,1768677428614,-500.0,0.00013072,2]
[402439612,1768677428624,-326.63806351,0.00013072,2]
[402439613,1768677428634,-499.81666025,0.00013072,2]
[402439614,1768677431460,-5000.0,0.00012289,2]
[402439630,1768677895526,-5000.0,0.00012266,2]
[402439631,1768677895574,-0.01,0.00012453,2]
[402439632,1768677895766,-186.40478104,0.00012453,2]
[402439633,1768677895799,-235.967,0.00012811,2]
[402439634,1768677895832,-3724.6130139,0.00013026,2]
[402439635,1768677895865,-300.0,0.00013071,2]
[402439636,1768677895899,-327.11388258,0.00013072,2]
[402439637,1768677895933,-29.24724705,0.00013072,2]
[402439638,1768677896041,-393.31815086,0.00013072,2]
[402439639,1768677896074,-500.0,0.00013072,2]
[402439640,1768677896105,-197.40884697,0.00013072,2]
[402439641,1768677902352,300.0,0.00013072,2]
[402439642,1768677914185,5000.0,0.00013073,2]
[402439654,1768678232025,-352.01140376,0.00012429,2]
[402439722,1768678238165,-2077.549415,0.00012429,2]
[402439724,1768678238178,-2570.43918124,0.00012429,2]
[402439726,1768678238188,-505.34026185,0.00012555,2]
[402439728,1768678238199,-182.68648542,0.00012745,2]
[402439730,1768678238209,-578.64664446,0.00012841,2]
[402439732,1768678238219,-349.87166218,0.00012841,2]
[402439734,1768678238228,-300.0,0.00012841,2]
[402439735,1768678238238,-15620.0163032,0.00012842,2]
[402439738,1768678238250,-984379.9836968,0.00012842,2]
[402439740,1768678238260,-16692.5574358,0.00012936,2]
[402439742,1768678238270,-3456.4969985,0.00012936,2]
[402439744,1768678238279,-151.0,0.000131,2]
[402439746,1768678238288,-151.0,0.000131,2]
[402439747,1768678238296,-151.0,0.000131,2]
[402439750,1768678238306,-151.0,0.000131,2]
[402439753,1768678238315,-151.0,0.000131,2]
[402439755,1768678238324,-151.0,0.000131,2]
[402439757,1768678238333,-151.0,0.000131,2]
[402439759,1768678238342,-151.0,0.000131,2]
[402439761,1768678238352,-151.0,0.000131,2]
[402439763,1768678238361,-151.0,0.000131,2]
[402439765,1768678238371,-151.0,0.000131,2]
[402439767,1768678238380,-151.0,0.000131,2]
[402439769,1768678238390,-151.0,0.000131,2]
[402439771,1768678238399,-151.0,0.000131,2]
[402439773,1768678238408,-151.0,0.000131,2]
[402439775,1768678238418,-151.0,0.000131,2]
[402439777,1768678238427,-151.0,0.000131,2]
[402439779,1768678238437,-151.0,0.000131,2]
[402439781,1768678238446,-151.0,0.000131,2]
[402439783,1768678238456,-151.0,0.000131,2]
[402439785,1768678238465,-151.0,0.000131,2]
[402439787,1768678238475,-646.56187716,0.00013229,2]
[402439789,1768678238483,-500.0,0.00013273,2]
[402439791,1768678238493,-500.0,0.00013273,2]
[402439793,1768678238503,-500.0,0.00013273,2]
[402439795,1768678238513,-440.24648614,0.00013273,2]
[402439797,1768678238523,-500.0,0.00013273,2]
[402439799,1768678238534,-500.0,0.00013273,2]
[402439801,1768678238543,-500.0,0.00013273,2]
[402439803,1768678238553,-500.0,0.00013273,2]
[402439805,1768678238563,-500.0,0.00013273,2]
[402439807,1768678238573,-500.0,0.00013273,2]
[402439809,1768678238582,-500.0,0.00013273,2]
[402439811,1768678238592,-500.0,0.00013273,2]
[402439813,1768678238602,-500.0,0.00013273,2]
[402439815,1768678238612,-500.0,0.00013273,2]
[402439817,1768678238621,-500.0,0.00013273,2]
[402439819,1768678238631,-500.0,0.00013273,2]
[402439821,1768678238645,-500.0,0.00013273,2]
[402439823,1768678238655,-999.298191,0.00013322,2]
[402439825,1768678238664,-500.0,0.00013424,2]
[402439827,1768678238674,-500.0,0.00013561,2]
[402439829,1768678238685,-500.0,0.00013698,2]
[402439831,1768678238694,-1000.0,0.00013698,2]
[402439833,1768678238705,-1000.0,0.00013698,2]
[402439835,1768678238716,-1000.0,0.00013698,2]
[402439837,1768678238726,-1000.0,0.00013698,2]
[402439839,1768678238735,-1000.0,0.00013698,2]
[402439841,1768678238745,-1000.0,0.00013698,2]
[402439843,1768678238754,-1000.0,0.00013698,2]
[402439845,1768678238763,-1019.17213815,0.00013698,2]
[402439847,1768678238773,-958.3,0.00013698,2]
[402439849,1768678238783,-958.3,0.00013698,2]
[402439851,1768678238792,-958.3,0.00013698,2]
[402439853,1768678238802,-958.3,0.00013698,2]
[402439855,1768678238812,-958.3,0.00013698,2]
[402439857,1768678238822,-958.3,0.00013698,2]
[402439859,1768678238831,-958.3,0.00013698,2]
[402439861,1768678238841,-958.3,0.00013698,2]
[402439863,1768678238851,-958.3,0.00013698,2]
[402439865,1768678238861,-958.3,0.00013698,2]
[402439867,1768678238870,-958.3,0.00013698,2]
[402439869,1768678238880,-958.3,0.00013698,2]
[402439871,1768678238890,-958.3,0.00013698,2]
[402439873,1768678238900,-958.3,0.00013698,2]
[402439875,1768678238909,-958.3,0.00013698,2]
[402439876,1768678238919,-958.3,0.00013698,2]
[402439878,1768678238929,-958.3,0.00013698,2]
[402439880,1768678238938,-958.3,0.00013698,2]
[402439882,1768678238948,-958.3,0.00013698,2]
[402439884,1768678238958,-958.3,0.00013698,2]
[402439886,1768678238967,-958.3,0.00013698,2]
[402439888,1768678238978,-958.3,0.00013698,2]
[402439890,1768678238986,-958.3,0.00013698,2]
[402439892,1768678238997,-958.38907998,0.00013698,2]
[402439894,1768678239007,-1974.72,0.00013698,2]
[402439896,1768678239017,-1974.72,0.00013698,2]
[402439898,1768678239027,-1974.72,0.00013698,2]
[402439900,1768678239036,-1974.72,0.00013698,2]
[402439902,1768678239045,-1974.72,0.00013698,2]
[402439904,1768678239055,-1974.72,0.00013698,2]
[402439906,1768678239064,-1974.72,0.00013698,2]
[402439908,1768678239074,-1974.72,0.00013698,2]
[402439910,1768678239083,-1974.72,0.00013698,2]
[402439912,1768678239093,-1974.72,0.00013698,2]
[402439914,1768678239103,-1974.72,0.00013698,2]
[402439916,1768678239113,-1974.72,0.00013698,2]
[402439918,1768678239123,-1974.72,0.00013698,2]
[402439920,1768678239132,-1974.72,0.00013698,2]
[402439922,1768678239142,-1974.72,0.00013698,2]
[402439924,1768678239151,-1974.72,0.00013698,2]
[402439925,1768678239161,-1974.72,0.00013698,2]
[402439928,1768678239172,-1974.72,0.00013698,2]
[402439930,1768678239183,-1974.72,0.00013698,2]
[402439932,1768678239193,-1974.72,0.00013698,2]
[402439934,1768678239203,-1974.72,0.00013698,2]
[402439936,1768678239213,-1974.72,0.00013698,2]
[402439938,1768678239223,-1974.72,0.00013698,2]
[402439940,1768678239233,-1974.90222486,0.00013698,2]
[402439942,1768678239242,-500.0,0.00013698,2]
[402439944,1768678239252,-500.0,0.00013698,2]
[402439946,1768678239261,-500.0,0.00013698,2]
[402439948,1768678239270,-500.0,0.00013698,2]
[402439949,1768678239280,-500.0,0.00013698,2]
[402439951,1768678239290,-500.0,0.00013698,2]
[402439954,1768678239300,-500.0,0.00013698,2]
[402439956,1768678239310,-500.0,0.00013698,2]
[402439958,1768678239320,-500.0,0.00013698,2]
[402439959,1768678239329,-500.0,0.00013698,2]
[402439961,1768678239339,-500.0,0.00013698,2]
[402439964,1768678239349,-500.0,0.00013698,2]
[402439966,1768678239359,-500.0,0.00013698,2]
[402439968,1768678239368,-500.0,0.00013698,2]
[402439970,1768678239378,-500.0,0.00013698,2]
[402439972,1768678239387,-500.0,0.00013698,2]
[402439974,1768678239396,-500.0,0.00013698,2]
[402439976,1768678239405,-500.0,0.00013698,2]
[402439978,1768678239416,-436.72021913,0.00013698,2]
[402439980,1768678239425,-341.906626,0.00013699,2]
[402439982,1768678239435,-134320.3669689,0.00013699,2]
[402439984,1768678239444,-500.0,0.00013699,2]
[402439985,1768678239454,-500.0,0.00013699,2]
[402439987,1768678239464,-158.0,0.00013699,2]
[402439989,1768678239474,-160.0,0.00013699,2]
[402439991,1768678239484,-500.0,0.00013699,2]
[402439993,1768678239494,-500.0,0.00013699,2]
[402439995,1768678239504,-500.0,0.00013699,2]
[402439997,1768678239514,-1000.0,0.00013821,2]
[402439999,1768678239524,-505.25947973,0.00013821,2]
[402440001,1768678239534,-1000.0,0.00013821,2]
[402440003,1768678239544,-500.0,0.00013835,2]
[402440005,1768678239554,-500.0,0.00013972,2]
[402440007,1768678239563,-420.0,0.00014084,2]
[402440009,1768678239573,-500.0,0.00014109,2]
[402440011,1768678239583,-100000.0,0.00014152,2]
[402440013,1768678239592,-500.0,0.00014246,2]
[402440016,1768678239602,-186.7596,0.00014247,2]
[402440017,1768678239613,-666.91973232,0.00014247,2]
[402440019,1768678239624,-1148.13731473,0.00014247,2]
[402440022,1768678239634,-1019.10615049,0.00014247,2]
[402440023,1768678239646,-297.71944026,0.0001429,2]
[402440026,1768678239657,-1004.04282277,0.00014368,2]
[402440028,1768678239667,-1500.0,0.00014368,2]
[402440029,1768678239677,-500.0,0.00014383,2]
[402440032,1768678239689,-5000.0,0.0001451,2]
[402440034,1768678239698,-500.0,0.0001452,2]
[402440036,1768678239710,-269.96129392,0.00014601,7]
[402440037,1768678239719,-3724.6130139,0.00014628,2]
[402440040,1768678239729,-500.0,0.00014657,2]
[402440042,1768678239739,-831.0734983,0.00014678,2]
[402440044,1768678239748,-215.5700528,0.00014745,2]
[402440046,1768678239758,-363.0,0.00014794,2]
[402440049,1768678239768,-239.92258785,0.0001482,7]
[402440052,1768678239778,-2000.0,0.00014916,2]
[402440053,1768678239789,-831.0734982,0.00015006,2]
[402440055,1768678239799,-172.0888523,0.00015006,2]
[402440058,1768678239809,-185.4375627,0.00015047,2]
[402440061,1768678239818,-360.326425,0.00015068,2]
[402440064,1768678239828,-239.92258785,0.00015094,7]
[402440067,1768678239838,-199.93548987,0.00015423,7]
[402440071,1768678239849,-587.0,0.00015448,2]
[402440074,1768678239860,-2500.0,0.00015464,2]
[402440078,1768678239870,-160.0,0.00015804,2]
[402440081,1768678239880,-593.0,0.00015887,2]
[402440084,1768678239891,-593.0,0.00015963,2]
[402440087,1768678239901,-3000.0,0.00016012,2]
[402440089,1768678239910,-250.0,0.00016024,2]
[402440093,1768678239920,-593.0,0.00016075,2]
[402440096,1768678239930,-593.0,0.00016078,2]
[402440099,1768678239940,-593.0,0.00016085,2]
[402440102,1768678239950,-593.0,0.00016132,2]
[402440105,1768678239961,-593.0,0.00016152,2]
[402440109,1768678239971,-593.0,0.00016196,2]
[402440112,1768678239980,-36063.83032382,0.00016326,2]
[402440115,1768678239990,-593.0,0.00016335,2]
[402440118,1768678240000,-2838.78490524,0.00016337,2]
[402440121,1768678240009,-652.0185569,0.00016337,2]
[402440124,1768678240019,-2605.46615336,0.00016337,2]
[402440127,1768678240029,-3000.0,0.00016428,2]
[402440130,1768678240039,-500.0,0.00016438,3]
[402440133,1768678240048,-500.0,0.00016438,3]
[402440136,1768678240058,-500.0,0.00016438,3]
[402440139,1768678240068,-500.0,0.00016438,3]
[402440142,1768678240078,-500.0,0.00016438,3]
[402440146,1768678240089,-648.17,0.00016438,3]
[402440149,1768678240099,-500.0,0.00016438,3]
[402440152,1768678240108,-500.0,0.00016438,3]
[402440155,1768678240118,-500.0,0.00016438,3]
[402440157,1768678240128,-500.0,0.00016438,3]
[402440159,1768678240138,-704.85,0.00016438,3]
[402440161,1768678240148,-500.0,0.00016438,3]
[402440162,1768678240159,-500.0,0.00016438,3]
[402440163,1768678240169,-790.27,0.00016438,3]
[402440164,1768678240179,-500.0,0.00016438,3]
[402440165,1768678240190,-500.0,0.00016438,3]
[402440166,1768678240200,-500.0,0.00016438,3]
[402440167,1768678240210,-862.74052012,0.00016438,3]
[402440168,1768678240220,-500.0,0.00016438,3]
[402440169,1768678240231,-500.0,0.00016438,3]
[402440170,1768678240241,-575.6,0.00016438,3]
[402440171,1768678240250,-500.0,0.00016438,3]
[402440172,1768678240261,-500.0,0.00016438,3]
[402440173,1768678240271,-500.0,0.00016438,3]
[402440174,1768678240281,-611.76,0.00016438,3]
[402440175,1768678240291,-500.0,0.00016438,3]
[402440176,1768678240301,-1351.59,0.00016438,3]
[402440177,1768678240311,-500.0,0.00016438,3]
[402440178,1768678240321,-603.67,0.00016438,3]
[402440179,1768678240331,-500.0,0.00016438,3]
[402440180,1768678240341,-500.0,0.00016438,3]
[402440181,1768678240351,-500.0,0.00016438,3]
[402440182,1768678240361,-500.0,0.00016438,3]
[402440183,1768678240372,-500.0,0.00016438,3]
[402440184,1768678240382,-500.0,0.00016438,3]
[402440185,1768678240392,-628.18,0.00016438,3]
[402440186,1768678240402,-500.0,0.00016438,3]
[402440187,1768678240412,-826.67,0.00016438,3]
[402440188,1768678240422,-1074.38,0.00016438,3]
[402440189,1768678240432,-695.94,0.00016438,3]
[402440190,1768678240442,-500.0,0.00016438,3]
[402440191,1768678240452,-609.26,0.00016438,3]
[402440192,1768678240462,-530.47,0.00016438,3]
[402440193,1768678240472,-500.0,0.00016438,3]
[402440194,1768678240483,-1000.0,0.00016438,2]
[402440195,1768678240493,-500.0,0.00016438,3]
[402440196,1768678240503,-500.0,0.00016438,3]
[402440197,1768678240514,-500.0,0.00016438,3]
[402440198,1768678240524,-500.0,0.00016438,3]
[402440200,1768678240534,-500.0,0.00016438,3]
[402440202,1768678240544,-500.0,0.00016438,3]
[402440204,1768678240553,-500.0,0.00016438,3]
[402440206,1768678240563,-500.0,0.00016438,3]
[402440208,1768678240572,-578.13,0.00016438,3]
[402440210,1768678240582,-500.0,0.00016438,3]
[402440212,1768678240592,-500.0,0.00016438,3]
[402440214,1768678240602,-500.0,0.00016438,3]
[402440216,1768678240611,-500.0,0.00016438,3]
[402440218,1768678240621,-533.97,0.00016438,3]
[402440220,1768678240631,-500.0,0.00016438,3]
[402440222,1768678240644,-500.0,0.00016438,3]
[402440224,1768678240653,-500.0,0.00016438,3]
[402440226,1768678240663,-500.0,0.00016438,3]
[402440229,1768678240674,-500.0,0.00016438,3]
[402440231,1768678240685,-500.0,0.00016438,3]
[402440233,1768678240695,-500.0,0.00016438,3]
[402440235,1768678240705,-546.97,0.00016438,3]
[402440237,1768678240717,-915.52,0.00016438,3]
[402440239,1768678240728,-500.0,0.00016438,3]
[402440241,1768678240737,-500.0,0.00016438,3]
[402440243,1768678240747,-557.15103403,0.00016438,3]
[402440245,1768678240756,-500.0,0.00016438,3]
[402440247,1768678240766,-500.0,0.00016438,3]
[402440249,1768678240776,-500.0,0.00016438,3]
[402440251,1768678240786,-500.0,0.00016438,3]
[402440253,1768678240796,-543.74,0.00016438,3]
[402440255,1768678240806,-500.0,0.00016438,3]
[402440257,1768678240816,-1080.02,0.00016438,3]
[402440259,1768678240826,-500.0,0.00016438,3]
[402440261,1768678240836,-500.0,0.00016438,3]
[402440264,1768678240846,-500.0,0.00016438,3]
[402440266,1768678240856,-1116.59,0.00016438,3]
[402440268,1768678240866,-530.22,0.00016438,3]
[402440270,1768678240877,-500.0,0.00016438,3]
[402440272,1768678240887,-500.0,0.00016438,3]
[402440274,1768678240898,-666.55,0.00016438,3]
[402440276,1768678240909,-500.0,0.00016438,3]
[402440278,1768678240919,-640.69,0.00016438,3]
[402440280,1768678240930,-500.0,0.00016438,3]
[402440308,1768678241165,-500.0,0.00016438,3]
[402440312,1768678241226,-535.81,0.00016438,3]
[402440314,1768678241236,-500.0,0.00016438,3]
[402440316,1768678241245,-803.97,0.00016438,3]
[402440318,1768678241254,-500.0,0.00016438,3]
[402440320,1768678241263,-894.28,0.00016438,3]
[402440322,1768678241273,-500.0,0.00016438,3]
[402440324,1768678241282,-500.0,0.00016438,3]
[402440326,1768678241291,-500.0,0.00016438,3]
[402440328,1768678241300,-500.0,0.00016438,3]
[402440330,1768678241309,-500.0,0.00016438,3]
[402440332,1768678241319,-500.0,0.00016438,3]
[402440333,1768678241328,-716.84,0.00016438,3]
[402440336,1768678241338,-510.34,0.00016438,3]
[402440338,1768678241351,-886.01,0.00016438,3]
[402440340,1768678241370,-500.0,0.00016438,3]
[402440342,1768678241379,-1108.48,0.00016438,3]
[402440344,1768678241389,-500.0,0.00016438,3]
[402440345,1768678241398,-906.41,0.00016438,3]
[402440347,1768678241409,-999.87,0.00016438,3]
[402440350,1768678241419,-500.0,0.00016438,3]
[402440351,1768678241430,-500.0,0.00016438,3]
[402440353,1768678241446,-500.0,0.00016438,3]
[402440356,1768678241469,-597.8010965,0.00016438,3]
[402440357,1768678241486,-1093.11,0.00016438,3]
[402440360,1768678241496,-500.0,0.00016438,3]
[402440361,1768678241506,-500.0,0.00016438,3]
[402440363,1768678241516,-500.0,0.00016438,3]
[402440365,1768678241525,-1503.34,0.00016438,3]
[402440367,1768678241534,-583.06,0.00016438,3]
[402440369,1768678241543,-772.35,0.00016438,3]
[402440371,1768678241553,-500.0,0.00016438,3]
[402440373,1768678241562,-500.0,0.00016438,3]
[402440375,1768678241581,-500.0,0.00016438,3]
[402440377,1768678241591,-678.11,0.00016438,3]
[402440379,1768678241601,-1038.1,0.00016438,3]
[402440381,1768678241610,-500.0,0.00016438,3]
[402440383,1768678241622,-1066.58,0.00016438,3]
[402440385,1768678241632,-500.0,0.00016438,3]
[402440387,1768678241648,-514.23188033,0.00016438,3]
[402440389,1768678241659,-841.62,0.00016438,3]
[402440391,1768678241668,-500.0,0.00016438,3]
[402440393,1768678241680,-500.0,0.00016438,3]
[402440395,1768678241689,-500.0,0.00016438,3]
[402440397,1768678241699,-500.0,0.00016438,3]
[402440399,1768678241711,-510.61,0.00016438,3]
[402440401,1768678241722,-500.0,0.00016438,3]
[402440403,1768678241732,-903.33,0.00016438,3]
[402440405,1768678241743,-554.46,0.00016438,3]
[402440407,1768678241752,-500.0,0.00016438,3]
[402440409,1768678241762,-500.0,0.00016438,3]
[402440411,1768678241771,-500.0,0.00016438,3]
[402440412,1768678241782,-500.0,0.00016438,3]
[402440414,1768678241793,-774.07,0.00016438,3]
[402440416,1768678241805,-629.03,0.00016438,3]
[402440418,1768678241814,-500.0,0.00016438,3]
[402440420,1768678241824,-500.0,0.00016438,3]
[402440422,1768678241834,-500.0,0.00016438,3]
[402440424,1768678241844,-496.95581154,0.00016438,3]
[402440426,1768678241853,-500.0,0.00016438,3]
[402440428,1768678241862,-1121.23,0.00016438,3]
[402440430,1768678241871,-1899.56,0.00016438,3]
[402440432,1768678241881,-782.37,0.00016438,3]
[402440433,1768678241890,-500.0,0.00016438,3]
[402440435,1768678241900,-500.0,0.00016438,3]
[402440437,1768678241910,-500.0,0.00016438,3]
[402440439,1768678241919,-500.0,0.00016438,3]
[402440441,1768678241929,-500.0,0.00016438,3]
[402440443,1768678241939,-500.0,0.00016438,3]
[402440446,1768678241948,-500.0,0.00016438,3]
[402440447,1768678241958,-600.45,0.00016438,3]
[402440449,1768678241967,-500.0,0.00016438,3]
[402440451,1768678241976,-500.0,0.00016438,3]
[402440453,1768678241985,-500.0,0.00016438,3]
[402440455,1768678241995,-1227.46,0.00016438,3]
[402440457,1768678242005,-500.0,0.00016438,3]
[402440459,1768678242014,-500.0,0.00016438,3]
[402440461,1768678242023,-500.0,0.00016438,3]
[402440463,1768678242033,-500.0,0.00016438,3]
[402440465,1768678242042,-500.0,0.00016438,3]
[402440467,1768678242052,-500.0,0.00016438,3]
[402440469,1768678242061,-970.35,0.00016438,3]
[402440471,1768678242071,-500.0,0.00016438,3]
[402440473,1768678242080,-500.0,0.00016438,3]
[402440475,1768678242089,-500.0,0.00016438,3]
[402440477,1768678242098,-1618.22,0.00016438,3]
[402440479,1768678242107,-500.0,0.00016438,3]
[402440481,1768678242116,-811.76,0.00016438,3]
[402440483,1768678242126,-500.0,0.00016438,3]
[402440485,1768678242135,-500.0,0.00016438,3]
[402440487,1768678242144,-500.0,0.00016438,3]
[402440489,1768678242153,-1318.72,0.00016438,3]
[402440491,1768678242162,-1044.43,0.00016438,3]
[402440493,1768678242171,-500.0,0.00016438,3]
[402440495,1768678242181,-516.06,0.00016438,3]
[402440497,1768678242190,-500.0,0.00016438,3]
[402440499,1768678242199,-500.0,0.00016438,3]
[402440501,1768678242209,-500.0,0.00016438,3]
[402440503,1768678242220,-408.02411447,0.00016438,3]
[402440505,1768678242229,-500.0,0.00016438,3]
[402440507,1768678242238,-1078.65,0.00016438,3]
[402440509,1768678242247,-741.42,0.00016438,3]
[402440511,1768678242258,-500.0,0.00016438,3]
[402440513,1768678242267,-500.0,0.00016438,3]
[402440515,1768678242276,-500.0,0.00016438,3]
[402440517,1768678242285,-500.0,0.00016438,3]
[402440519,1768678242295,-556.35,0.00016438,3]
[402440521,1768678242304,-500.0,0.00016438,3]
[402440523,1768678242313,-500.0,0.00016438,3]
[402440525,1768678242323,-500.0,0.00016438,3]
[402440527,1768678242334,-621.29598782,0.00016438,3]
[402440529,1768678242343,-500.0,0.00016438,3]
[402440531,1768678242353,-500.0,0.00016438,3]
[402440533,1768678242363,-618.02349392,0.00016438,3]
[402440535,1768678242372,-500.0,0.00016438,3]
[402440537,1768678242381,-500.0,0.00016438,3]
[402440539,1768678242392,-500.0,0.00016438,3]
[402440541,1768678242401,-500.0,0.00016438,3]
[402440543,1768678242410,-1311.65,0.00016438,3]
[402440545,1768678242419,-500.0,0.00016438,3]
[402440547,1768678242429,-968.07,0.00016438,3]
[402440549,1768678242439,-576.57,0.00016438,3]
[402440551,1768678242448,-500.0,0.00016438,3]
[402440553,1768678242458,-500.0,0.00016438,3]
[402440555,1768678242468,-500.0,0.00016438,3]
[402440557,1768678242477,-500.0,0.00016438,3]
[402440559,1768678242486,-954.0,0.00016438,3]
[402440561,1768678242494,-1221.51,0.00016438,3]
[402440563,1768678242503,-1229.38,0.00016438,3]
[402440565,1768678242513,-1126.24,0.00016438,3]
[402440567,1768678242523,-500.0,0.00016438,3]
[402440569,1768678242532,-500.0,0.00016438,3]
[402440571,1768678242541,-500.0,0.00016438,3]
[402440573,1768678242551,-702.75,0.00016438,3]
[402440575,1768678242560,-500.0,0.00016438,3]
[402440578,1768678242570,-500.0,0.00016438,3]
[402440580,1768678242579,-1167.5,0.00016438,3]